bitfinex/quotes_BTCUSD_20251114
["timestamp","ask_amount","ask_price","bid_price","bid_amount"]
[1763144550444,0.0454,95922.0,95920.0,0.20850683]
[1763144550651,0.01917673,95927.0,95920.0,0.20850683]
[1763144550652,0.01917673,95921.0,95920.0,0.20850683]
[1763144551009,0.0454,95933.0,95929.0,0.01641]
[1763144551211,0.01918136,95932.0,95929.0,0.01641]
[1763144551409,0.01918136,95931.0,95930.0,0.20848535]
[1763144551660,0.01918136,95934.0,95929.0,0.01641]
[1763144551861,0.01918317,95933.0,95931.0,0.20848191]
[1763144552039,0.01918317,95932.0,95930.0,0.2084829]
[1763144552236,0.01918317,95931.0,95926.0,0.20849291]
[1763144552444,0.01918317,95930.0,95927.0,0.31328841]
[1763144552620,0.01918317,95929.0,95928.0,0.21307705]
[1763144552824,0.20847969,95933.0,95929.0,0.20848716]
[1763144553194,0.01919049,95932.0,95930.0,0.20848499]
[1763144553362,0.01919049,95931.0,95924.0,0.23174805]
[1763144553565,0.01919049,95930.0,95925.0,0.10479654]
[1763144553777,0.01919049,95929.0,95928.0,0.20848958]
[1763144554401,0.01919049,95929.0,95926.0,0.02325]
[1763144554573,0.01919049,95928.0,95927.0,0.20849113]
[1763144554803,0.01919049,95928.0,95926.0,0.23174345]
[1763144554962,0.01919049,95927.0,95926.0,0.20849345]
[1763144555156,0.01919049,95927.0,95925.0,0.3132903]
[1763144555357,0.01919049,95926.0,95925.0,0.10479654]
[1763144555580,0.01919049,95926.0,95925.0,0.10938697]
[1763144556370,0.01919049,95926.0,95925.0,0.10479654]
[1763144556532,0.0454,95946.0,95934.0,0.01641]
[1763144556733,0.01924025,95945.0,95944.0,0.20845342]
[1763144557142,0.01924025,95945.0,95944.0,0.23170342]
[1763144557907,0.01924025,95945.0,95925.0,0.10579654]
[1763144558115,0.0454,95954.0,95925.0,0.10579654]
[1763144558116,0.01925508,95944.0,95941.0,0.10479654]
[1763144558269,0.2084364,95953.0,95949.0,0.20844299]
[1763144558468,0.0192661,95952.0,95949.0,0.20844299]
[1763144558689,0.0192661,95951.0,95950.0,0.20844189]
[1763144559075,0.0192661,95951.0,95948.0,0.20844587]
[1763144559275,0.0192661,95950.0,95947.0,0.01102]
[1763144559452,0.0192661,95949.0,95947.0,0.21946803]
[1763144559653,0.0192661,95948.0,95947.0,0.21946803]
[1763144560084,0.0192661,95948.0,95947.0,0.01102]
[1763144560498,0.22771234,95948.0,95947.0,0.01102]
[1763144561675,0.20845695,95944.0,95941.0,0.00024471]
[1763144561882,0.20845927,95942.0,95941.0,0.00024471]
[1763144562081,0.22772537,95942.0,95941.0,0.00024471]
[1763144563852,0.24408537,95942.0,95941.0,0.00024471]
[1763144564135,0.24408537,95942.0,95941.0,0.00124471]
[1763144564338,0.24408537,95942.0,95941.0,0.00024471]
[1763144565956,0.56708537,95942.0,95941.0,0.00024471]
[1763144566955,0.67014268,95942.0,95941.0,0.00024471]
[1763144567288,0.69234711,95942.0,95941.0,0.00024471]
[1763144567638,0.67014268,95942.0,95941.0,0.00024471]
[1763144567829,0.69234354,95942.0,95941.0,0.00024471]
[1763144568311,0.69433938,95942.0,95941.0,0.00024471]
[1763144570039,0.20852665,95911.0,95910.0,0.0004]
[1763144570251,0.62165275,95911.0,95910.0,0.0004]
[1763144570945,0.63196187,95911.0,95910.0,0.0004]
[1763144571799,0.67538061,95911.0,95910.0,0.0004]
[1763144572566,0.66507149,95911.0,95910.0,0.0004]
[1763144572783,0.66607149,95911.0,95910.0,0.0004]
[1763144573314,0.81974087,95911.0,95910.0,0.0004]
[1763144573514,0.72567862,95911.0,95910.0,0.0004]
[1763144573892,0.74781594,95911.0,95910.0,0.0004]
[1763144574325,0.69681594,95911.0,95910.0,0.0004]
[1763144574495,0.69781594,95911.0,95910.0,0.0004]
[1763144574695,0.67667862,95911.0,95910.0,0.0004]
[1763144574879,0.63127862,95911.0,95910.0,0.0004]
[1763144575083,0.67667862,95911.0,95910.0,0.0004]
[1763144575698,0.67667862,95911.0,95910.0,0.00124318]
[1763144578262,0.66707149,95911.0,95910.0,0.00124318]
[1763144578533,0.62167149,95911.0,95910.0,0.00124318]
[1763144578784,0.66707149,95911.0,95910.0,0.00124318]
[1763144579058,0.66607149,95911.0,95910.0,0.00124318]
[1763144579825,0.62067149,95911.0,95910.0,0.00124318]
[1763144580598,0.57625275,95911.0,95910.0,0.00124318]
[1763144580859,0.4141261,95911.0,95910.0,0.00124318]
[1763144581105,0.3677261,95911.0,95910.0,0.00124318]
[1763144581591,0.4130361,95911.0,95910.0,0.00124318]
[1763144581858,0.3967661,95911.0,95910.0,0.00124318]
[1763144582104,0.0192661,95911.0,95910.0,0.00124318]
[1763144582308,0.0454,95911.0,95910.0,0.00124318]
[1763144582731,0.20850974,95919.0,95914.0,0.20851885]
[1763144582951,0.0454,95918.0,95914.0,0.20851885]
[1763144583164,0.20851404,95917.0,95913.0,0.20852186]
[1763144583624,0.0454,95918.0,95916.0,0.20851543]
[1763144583823,0.20850016,95924.0,95913.0,0.20852186]
[1763144583824,0.20849244,95927.0,95917.0,0.20851361]
[1763144584026,0.20849884,95924.0,95920.0,0.20850549]
[1763144584242,0.20850844,95920.0,95918.0,0.01102]
[1763144584453,0.20852665,95911.0,95910.0,0.0004]
[1763144584656,0.28247665,95911.0,95910.0,0.0004]
[1763144585096,0.60547665,95911.0,95910.0,0.0004]
[1763144585515,0.6680392,95911.0,95910.0,0.0004]
[1763144585720,0.7180392,95911.0,95910.0,0.0004]
[1763144587870,0.7190392,95911.0,95910.0,0.0004]
[1763144588095,0.7200392,95911.0,95910.0,0.0004]
[1763144588302,0.92850512,95911.0,95910.0,1e-08]
[1763144588461,0.26823713,95901.0,95900.0,1e-08]
[1763144588663,0.57498888,95891.0,95890.0,0.0004]
[1763144588861,0.53163542,95861.0,95860.0,0.0004]
[1763144589248,0.60471542,95861.0,95860.0,0.0004]
[1763144589677,0.65862869,95861.0,95860.0,0.0004]
[1763144589866,0.67776187,95861.0,95860.0,0.0004]
[1763144590689,0.72776187,95861.0,95860.0,0.0004]
[1763144591120,0.72976187,95861.0,95860.0,0.0004]
[1763144591333,0.73393832,95861.0,95860.0,0.0004]
[1763144592028,0.68393832,95861.0,95860.0,0.0004]
[1763144592205,0.63853832,95861.0,95860.0,0.0004]
[1763144592412,0.68393832,95861.0,95860.0,0.0004]
[1763144592810,0.62804379,95861.0,95860.0,0.0004]
[1763144593009,0.68406535,95861.0,95860.0,0.0004]
[1763144593182,0.73406535,95861.0,95860.0,0.0004]
[1763144593824,0.68766535,95861.0,95860.0,0.0004]
[1763144594064,0.73206535,95861.0,95860.0,0.0004]
[1763144594264,0.73306535,95861.0,95860.0,0.0004]
[1763144594799,0.68766535,95861.0,95860.0,0.0004]
[1763144594998,0.66826734,95861.0,95860.0,0.0004]
[1763144595203,0.67883572,95861.0,95860.0,0.0004]
[1763144595797,0.66826734,95861.0,95860.0,0.0004]
[1763144596200,0.66926734,95861.0,95860.0,0.0004]
[1763144596432,0.71826734,95861.0,95860.0,0.0004]
[1763144596628,0.66826734,95861.0,95860.0,0.0004]
[1763144596807,0.66726734,95861.0,95860.0,0.0004]
[1763144597204,0.66826734,95861.0,95860.0,0.0004]
[1763144598467,0.6248486,95861.0,95860.0,0.0004]
[1763144598643,0.04781318,95861.0,95860.0,0.0004]
[1763144598857,0.02013318,95861.0,95860.0,0.0004]
[1763144599071,0.06553318,95861.0,95860.0,0.0004]
[1763144599575,0.2741686,95861.0,95860.0,0.00176091]
[1763144599774,0.06453318,95861.0,95860.0,0.00176091]
[1763144600190,0.01913318,95861.0,95860.0,0.00276091]
[1763144600721,0.01913318,95861.0,95860.0,0.00176091]
[1763144600923,0.03467318,95861.0,95860.0,0.00176091]
[1763144601065,0.0607526,95861.0,95860.0,0.00276091]
[1763144601267,0.0607526,95861.0,95860.0,0.00176091]
[1763144602119,0.3837526,95861.0,95860.0,0.00176091]
[1763144602324,0.35767318,95861.0,95860.0,0.00176091]
[1763144602646,0.40109192,95861.0,95860.0,0.00376091]
[1763144602931,0.40109192,95861.0,95860.0,0.00176091]
[1763144603351,0.45109192,95861.0,95860.0,0.00176091]
[1763144603771,0.46065318,95861.0,95860.0,0.00176091]
[1763144604137,0.46065261,95861.0,95860.0,0.00176091]
[1763144605110,0.46065261,95861.0,95840.0,0.0004]
[1763144605111,0.62507592,95851.0,95840.0,0.0004]
[1763144605310,0.83164633,95851.0,95840.0,0.0004]
[1763144605891,0.78624633,95851.0,95840.0,0.0004]
[1763144606089,0.83164633,95851.0,95840.0,0.0004]
[1763144606389,0.83364633,95851.0,95840.0,0.0004]
[1763144606754,0.83264633,95851.0,95840.0,0.0004]
[1763144606969,0.83364633,95851.0,95840.0,0.0004]
[1763144607155,0.78824633,95851.0,95840.0,0.0004]
[1763144607378,0.83364633,95851.0,95840.0,0.0004]
[1763144607582,0.72884979,95851.0,95840.0,0.0004]
[1763144607945,0.68344979,95851.0,95840.0,0.0004]
[1763144608189,0.67884979,95851.0,95840.0,0.0004]
[1763144608592,0.59003105,95851.0,95840.0,0.0004]
[1763144608788,0.63543105,95851.0,95840.0,0.0004]
[1763144609042,0.67884979,95851.0,95840.0,0.0004]
[1763144609248,0.6692891,95851.0,95840.0,0.0004]
[1763144609779,0.72883921,95851.0,95840.0,0.0004]
[1763144610248,0.20867895,95841.0,95840.0,0.0004]
[1763144610423,0.70517087,95841.0,95840.0,0.0004]
[1763144610626,0.76838914,95841.0,95840.0,1e-08]
[1763144610824,0.57514125,95821.0,95820.0,0.0004]
[1763144611030,0.70493443,95821.0,95820.0,0.0004]
[1763144611235,0.65493443,95821.0,95820.0,0.00148947]
[1763144611603,0.53174429,95811.0,95810.0,0.0004]
[1763144611805,0.61715258,95811.0,95810.0,0.0004]
[1763144611999,0.36300829,95811.0,95810.0,0.0004]
[1763144612312,0.35167829,95811.0,95810.0,0.0004]
[1763144612508,0.39707829,95811.0,95810.0,0.0004]
[1763144613046,0.02867829,95811.0,95810.0,0.0004]
[1763144613271,0.07407829,95811.0,95810.0,0.02324]
[1763144613658,0.02867829,95811.0,95810.0,0.12803654]
[1763144614478,0.02867829,95811.0,95810.0,0.02324]
[1763144614693,0.02867829,95811.0,95810.0,0.0004]
[1763144615108,0.02867829,95811.0,95810.0,0.11084953]
[1763144615314,0.02867829,95811.0,95810.0,0.10719654]
[1763144615525,0.02867829,95811.0,95810.0,0.10619654]
[1763144615720,0.02867829,95811.0,95810.0,0.0024]
[1763144615918,0.07411829,95811.0,95810.0,0.0024]
[1763144616150,0.07411829,95811.0,95810.0,0.0004]
[1763144616268,0.07411829,95811.0,95810.0,0.0014]
[1763144616756,0.07411829,95811.0,95810.0,0.0004]
[1763144617071,0.08937829,95811.0,95810.0,0.00067245]
[1763144617275,0.08937829,95811.0,95810.0,0.00167245]
[1763144617684,0.07417871,95811.0,95810.0,0.00267245]
[1763144617883,0.07417871,95811.0,95810.0,0.00167245]
[1763144619498,0.02873871,95811.0,95810.0,0.00632544]
[1763144619676,0.02873871,95811.0,95810.0,0.00167245]
[1763144619893,0.02873871,95811.0,95810.0,0.10646899]
[1763144620748,0.02873871,95811.0,95810.0,0.11112198]
[1763144621197,0.02873871,95811.0,95810.0,0.10646899]
[1763144621630,0.00957957,95811.0,95810.0,0.10646899]
[1763144622522,0.00957957,95811.0,95810.0,0.10546899]
[1763144622729,0.00957957,95811.0,95810.0,0.10646899]
[1763144622953,0.00959078,95811.0,95810.0,0.3256506]
[1763144623149,0.20869935,95832.0,95828.0,0.20870714]
[1763144623364,0.0095906,95831.0,95829.0,0.20870448]
[1763144623700,0.0095906,95830.0,95829.0,0.23154448]
[1763144623904,0.00665612,95830.0,95829.0,0.20870448]
[1763144625096,0.20864953,95855.0,95830.0,0.01043514]
[1763144625283,0.01918102,95854.0,95848.0,0.01569]
[1763144625480,0.20865203,95854.0,95849.0,0.2086596]
[1763144625704,0.20864896,95855.0,95848.0,0.01569]
[1763144625909,0.04544,95856.0,95851.0,0.20865679]
[1763144626085,0.04544,95856.0,95852.0,0.20865446]
[1763144626453,0.63390204,95870.0,95857.0,0.02671]
[1763144626605,0.20864087,95859.0,95857.0,0.02671]
[1763144626806,0.63390204,95870.0,95857.0,0.02671]
[1763144627008,0.36825896,95869.0,95857.0,0.02671]
[1763144627206,0.20863872,95860.0,95857.0,0.02671]
[1763144627410,0.2086419,95859.0,95857.0,0.02671]
[1763144627914,0.323,95869.0,95866.0,0.01569]
[1763144628078,0.20860794,95874.0,95869.0,0.20861754]
[1763144628278,0.323,95875.0,95871.0,0.20861365]
[1763144628637,0.23468519,95874.0,95868.0,0.01039]
[1763144628775,0.20861583,95870.0,95868.0,0.01039]
[1763144628979,0.63390095,95880.0,95870.0,0.20861373]
[1763144629232,0.20860456,95876.0,95871.0,0.20861312]
[1763144629395,0.323,95875.0,95871.0,0.20861312]
[1763144629592,0.323,95875.0,95868.0,0.01039]
[1763144629593,0.03131005,95898.0,95880.0,0.01569]
[1763144629790,0.20860755,95874.0,95872.0,0.02284]
[1763144629992,0.20860755,95874.0,95868.0,0.01139]
[1763144629993,0.20861636,95870.0,95868.0,0.01139]
[1763144630417,0.20860514,95875.0,95868.0,0.01139]
[1763144630617,0.20861506,95871.0,95868.0,0.01139]
[1763144630817,0.2086166,95870.0,95868.0,0.01039]
[1763144631088,0.20861525,95871.0,95868.0,0.21900915]
[1763144631362,0.2346928,95870.0,95868.0,0.01139]
[1763144631579,0.20861583,95870.0,95868.0,0.01139]
[1763144631788,0.20861583,95870.0,95868.0,0.01239]
[1763144632145,0.20861462,95871.0,95868.0,0.01239]
[1763144632367,0.83206533,95880.0,95872.0,0.20861049]
[1763144632368,0.62347125,95880.0,95872.0,0.20861049]
[1763144632613,0.20859959,95878.0,95873.0,0.20860885]
[1763144633034,0.0454,95879.0,95875.0,0.20860425]
[1763144633375,0.25399698,95879.0,95875.0,0.20860425]
[1763144633594,0.0454,95879.0,95875.0,0.20860425]
[1763144633881,0.323,95889.0,95878.0,0.2085966]
[1763144634098,0.323,95881.0,95878.0,0.2085966]
[1763144634322,0.323,95881.0,95868.0,0.01039]
[1763144634323,0.02472,95899.0,95872.0,0.02284]
[1763144634476,0.07061574,95898.0,95884.0,0.01569]
[1763144634674,0.20858194,95886.0,95884.0,0.01569]
[1763144634881,0.0454,95886.0,95884.0,0.2242747]
[1763144635090,0.02472,95916.0,95893.0,0.01569]
[1763144635251,0.20855546,95898.0,95895.0,0.01569]
[1763144635680,0.63389769,95910.0,95896.0,0.01102]
[1763144635881,0.00956466,95909.0,95896.0,0.03386]
[1763144636119,0.02202999,95921.0,95896.0,0.03386]
[1763144636120,0.62347125,95920.0,95905.0,0.20853809]
[1763144636293,0.20852976,95910.0,95904.0,0.20854112]
[1763144636501,0.20853218,95909.0,95905.0,0.20853897]
[1763144636719,0.323,95906.0,95900.0,0.20854853]
[1763144636956,0.2085403,95905.0,95899.0,0.20855072]
[1763144637155,0.62347125,95910.0,95898.0,0.2085541]
[1763144637288,0.20854605,95903.0,95898.0,0.2085541]
[1763144637488,0.02659,95899.0,95835.0,0.07453182]
[1763144637730,0.323,95883.0,95865.0,0.02284]
[1763144637947,0.07147371,95882.0,95858.0,0.02284]
[1763144638151,0.2086169,95870.0,95862.0,0.20863234]
[1763144638326,0.2086169,95870.0,95860.0,0.2086368]
[1763144638527,0.2086169,95870.0,95864.0,0.02284]
[1763144638930,0.20861009,95873.0,95865.0,0.20862612]
[1763144639180,0.25398972,95882.0,95881.0,0.01102]
[1763144640422,0.20858759,95883.0,95881.0,0.01102]
[1763144640625,0.323,95887.0,95881.0,0.01102]
[1763144640830,0.323,95899.0,95890.0,0.01522]
[1763144641051,0.53157224,95891.0,95890.0,0.01522]
[1763144641457,0.0454,95898.0,95890.0,0.01522]
[1763144641658,0.0454,95898.0,95887.0,0.10479654]
[1763144641659,0.62347125,95910.0,95897.0,0.20855669]
[1763144641862,0.01239,95925.0,95905.0,0.01522]
[1763144642040,0.20850583,95921.0,95919.0,0.02624]
[1763144642367,0.63389551,95930.0,95921.0,0.20850303]
[1763144642368,0.62347125,95930.0,95921.0,0.20850303]
[1763144642545,0.63389443,95940.0,95929.0,0.01522]
[1763144642761,0.5418868,95940.0,95939.0,0.01102]
[1763144642887,0.20848286,95932.0,95929.0,0.01522]
[1763144643253,0.323,95939.0,95919.0,0.01102]
[1763144643468,0.02605849,95938.0,95919.0,0.01202]
[1763144643672,0.20850599,95921.0,95919.0,0.05746]
[1763144644539,0.20850599,95921.0,95919.0,0.01102]
[1763144644738,0.20657122,95921.0,95919.0,0.01102]
[1763144644946,0.20657122,95921.0,95919.0,0.01202]
[1763144645705,0.20657122,95921.0,95919.0,0.01302]
[1763144645941,0.323,95935.0,95920.0,0.02497]
[1763144646145,0.0227,95956.0,95920.0,0.02497]
[1763144646146,0.63389225,95960.0,95934.0,0.12001654]
[1763144646302,0.20845297,95945.0,95939.0,0.01522]
[1763144646499,0.20846027,95942.0,95939.0,0.01522]
[1763144646666,0.20846523,95940.0,95934.0,0.31327303]
[1763144646879,0.20846083,95942.0,95936.0,0.2084723]
[1763144647097,0.20846083,95942.0,95934.0,0.31327303]
[1763144647098,0.323,95959.0,95934.0,0.10479654]
[1763144647299,0.20845058,95946.0,95945.0,0.01522]
[1763144647496,0.010421,95960.0,95945.0,0.01522]
[1763144647497,0.20843972,95951.0,95945.0,0.01522]
[1763144647748,0.20844801,95948.0,95946.0,0.0107]
[1763144650627,0.20844626,95951.0,95938.0,0.0107]
[1763144650628,0.20846054,95942.0,95938.0,0.0107]
[1763144650827,0.20846579,95939.0,95938.0,0.0107]
[1763144651604,0.20850708,95920.0,95919.0,0.01102]
[1763144653117,0.20850503,95921.0,95919.0,0.01102]
[1763144653347,0.01208,95934.0,95919.0,0.01102]
[1763144653348,0.20848318,95933.0,95928.0,0.01666]
[1763144653481,0.63389334,95950.0,95920.0,0.02468]
[1763144653482,0.0454,95932.0,95930.0,0.10479654]
[1763144653680,0.20848318,95931.0,95930.0,0.10479654]
[1763144653882,0.323,95949.0,95930.0,0.31328089]
[1763144654085,0.05494866,95946.0,95931.0,0.23316133]
[1763144654290,0.20846931,95938.0,95931.0,0.23316133]
[1763144654536,0.20846439,95940.0,95932.0,0.23316032]
[1763144654736,0.20846165,95941.0,95939.0,0.01666]
[1763144654938,0.0454,95942.0,95934.0,0.20847666]
[1763144654939,0.20846721,95939.0,95934.0,0.20847666]
[1763144655143,0.20846889,95938.0,95934.0,0.20847666]
[1763144655372,0.37112271,95950.0,95935.0,0.02468]
[1763144655573,0.37112271,95950.0,95943.0,0.01666]
[1763144655574,0.20845217,95946.0,95943.0,0.01666]
[1763144655743,0.20845456,95945.0,95943.0,0.01666]
[1763144656369,0.20845334,95945.0,95943.0,0.01666]
[1763144657941,0.20845194,95946.0,95943.0,0.01666]
[1763144658107,0.20845194,95946.0,95933.0,0.02468]
[1763144658108,0.20847325,95936.0,95933.0,0.02468]
[1763144658268,0.20847571,95935.0,95933.0,0.02468]
[1763144658469,0.0454,95947.0,95937.0,0.20846963]
[1763144658695,0.05748,95947.0,95930.0,0.10479654]
[1763144658870,0.20848318,95931.0,95930.0,0.10479654]
[1763144659213,0.20848318,95931.0,95924.0,0.20849803]
[1763144659214,0.20849238,95927.0,95924.0,0.20849803]
[1763144659458,0.2084735,95936.0,95930.0,0.01666]
[1763144659632,0.0454,95938.0,95930.0,0.22514509]
[1763144659851,0.0454,95938.0,95930.0,0.01666]
[1763144660056,0.02280992,95970.0,95931.0,0.02468]
[1763144660268,0.00956854,95948.0,95947.0,0.10479654]
[1763144660455,0.20844481,95949.0,95948.0,0.01666]
[1763144660663,0.323,95959.0,95948.0,0.01666]
[1763144660886,0.26339307,95958.0,95956.0,0.0107]
[1763144661090,0.00956856,95957.0,95956.0,0.0107]
[1763144661290,0.00956856,95957.0,95935.0,0.20847311]
[1763144661291,0.20844832,95948.0,95942.0,0.0107]
[1763144661497,0.30155325,95947.0,95932.0,0.20848043]
[1763144661629,0.2084569,95944.0,95934.0,0.20847518]
[1763144661831,0.00956856,95943.0,95940.0,0.20846322]
[1763144662034,0.20845065,95946.0,95942.0,0.20845813]
[1763144662230,0.20845065,95946.0,95935.0,0.0107]
[1763144662231,0.02800738,95945.0,95939.0,0.20846427]
[1763144662428,0.00957341,95944.0,95935.0,0.0107]
[1763144662974,0.00957341,95943.0,95939.0,0.20846391]
[1763144663177,0.00957341,95942.0,95939.0,0.20846391]
[1763144663408,0.00957341,95941.0,95939.0,0.20846391]
[1763144663608,0.05497341,95940.0,95937.0,0.20846898]
[1763144663804,0.00957341,95939.0,95938.0,0.20846721]
[1763144664184,0.00957341,95939.0,95937.0,0.20847011]
[1763144664953,0.00957341,95939.0,95932.0,0.0107]
[1763144665211,0.53146579,95939.0,95938.0,0.001]
[1763144665409,0.54105257,95939.0,95938.0,0.001]
[1763144665989,0.57592494,95939.0,95938.0,0.001]
[1763144666501,0.57592494,95939.0,95903.0,0.03538]
[1763144666502,0.36745915,95939.0,95903.0,0.0107]
[1763144666657,0.20854187,95904.0,95903.0,0.0107]
[1763144666864,0.25390187,95904.0,95903.0,0.0107]
[1763144667087,0.26348838,95904.0,95903.0,0.0107]
[1763144667282,0.20857449,95889.0,95883.0,0.04536]
[1763144667572,0.20857449,95889.0,95872.0,0.10479654]
[1763144667573,0.20857449,95889.0,95875.0,0.0454]
[1763144667720,0.26356031,95889.0,95874.0,0.02468]
[1763144667921,0.20860495,95875.0,95872.0,0.10479654]
[1763144668122,0.20856591,95893.0,95888.0,0.01666]
[1763144668328,0.20857253,95891.0,95890.0,0.01666]
[1763144668513,0.21816599,95891.0,95890.0,0.01666]
[1763144668920,0.20857449,95889.0,95888.0,0.0117]
[1763144669120,0.21816795,95889.0,95888.0,0.0117]
[1763144669576,0.00959554,95889.0,95888.0,0.0117]
[1763144670230,0.00959554,95889.0,95888.0,0.0107]
[1763144670674,0.20860798,95874.0,95872.0,0.10479654]
[1763144671144,0.20860758,95874.0,95872.0,0.10479654]
[1763144671359,0.20860734,95876.0,95872.0,0.31340768]
[1763144671360,0.20860356,95876.0,95872.0,0.31340768]
[1763144671568,0.20859625,95879.0,95873.0,0.02391]
[1763144671792,0.0454,95881.0,95880.0,0.01631]
[1763144672013,0.20860645,95875.0,95873.0,0.02391]
[1763144672423,0.0454,95881.0,95873.0,0.02391]
[1763144672635,0.0454,95880.0,95878.0,0.20859801]
[1763144672842,0.01042752,95900.0,95875.0,0.20860495]
[1763144672843,0.0454,95879.0,95875.0,0.20860495]
[1763144673054,0.0454,95879.0,95877.0,0.20859999]
[1763144673492,0.20857884,95887.0,95886.0,0.01631]
[1763144673727,0.2635252,95887.0,95886.0,0.01631]
[1763144674292,0.05494636,95887.0,95886.0,0.01631]
[1763144674927,0.00958636,95887.0,95886.0,0.01631]
[1763144675132,0.05494636,95887.0,95886.0,0.01631]
[1763144675557,0.00958374,95887.0,95886.0,0.01631]
[1763144675752,0.05494374,95887.0,95886.0,0.01631]
[1763144675953,0.05494416,95887.0,95886.0,0.01631]
[1763144676264,0.05494416,95887.0,95871.0,0.21963205]
[1763144676265,0.20858102,95886.0,95871.0,0.01102]
[1763144676459,0.04536,95887.0,95883.0,0.20858693]
[1763144676656,0.323,95909.0,95887.0,0.20857857]
[1763144676829,0.20856273,95895.0,95892.0,0.01631]
[1763144677067,0.21814816,95894.0,95892.0,0.01631]
[1763144677250,0.00371819,95893.0,95892.0,0.01631]
[1763144677922,0.04911819,95893.0,95892.0,0.01631]
[1763144678121,0.20854621,95903.0,95897.0,0.20855661]
[1763144678326,0.25394621,95903.0,95902.0,0.01631]
[1763144678529,0.20854621,95903.0,95902.0,0.01631]
[1763144678724,0.0454,95903.0,95902.0,0.01631]
[1763144679141,0.20854291,95904.0,95902.0,0.01631]
[1763144679345,0.323,95919.0,95903.0,0.13940654]
[1763144679696,0.38154806,95920.0,95903.0,0.13940654]
[1763144679697,0.20852882,95910.0,95909.0,0.01631]
[1763144679915,0.2085397,95905.0,95903.0,0.11549654]
[1763144681244,0.20854187,95904.0,95903.0,0.0107]
[1763144681939,0.20856596,95893.0,95888.0,0.24318521]
[1763144682155,0.20857232,95890.0,95888.0,0.03461]
[1763144682766,0.20857449,95889.0,95888.0,0.0107]
[1763144682921,0.20860236,95877.0,95875.0,0.02391]
[1763144683109,0.0454,95893.0,95884.0,0.01631]
[1763144683309,0.25396641,95893.0,95892.0,0.0107]
[1763144683512,0.20856797,95892.0,95876.0,0.02391]
[1763144683715,0.0454,95893.0,95876.0,0.02391]
[1763144683716,0.2086006,95877.0,95876.0,0.02391]
[1763144684117,0.25398107,95886.0,95872.0,0.15019654]
[1763144684118,0.2086093,95873.0,95872.0,0.15019654]
[1763144685657,0.2086093,95873.0,95872.0,0.001]
[1763144685869,0.2086093,95873.0,95872.0,0.002]
[1763144686478,0.2086093,95873.0,95872.0,0.001]
[1763144686678,0.2540093,95873.0,95872.0,0.002]
[1763144686915,0.2540093,95873.0,95872.0,0.001]
[1763144687241,0.2540093,95873.0,95872.0,0.002]
[1763144688043,0.2540093,95873.0,95872.0,0.001]
[1763144688668,0.2540093,95873.0,95872.0,0.000526]
[1763144689758,0.2540093,95873.0,95872.0,0.001526]
[1763144692553,0.20858972,95882.0,95881.0,0.01631]
[1763144692752,0.20860495,95875.0,95874.0,0.00461469]
[1763144693076,0.2086093,95873.0,95872.0,0.001526]
[1763144693281,0.2086093,95873.0,95872.0,0.025436]
[1763144693481,0.2086093,95873.0,95872.0,0.000526]
[1763144694611,0.2086093,95873.0,95872.0,0.001526]
[1763144695395,0.2540093,95873.0,95872.0,0.001526]
[1763144695597,0.2540093,95873.0,95872.0,0.002526]
[1763144696411,0.2086093,95873.0,95872.0,0.002526]
[1763144696716,0.2540093,95873.0,95872.0,0.002526]
[1763144698930,0.20860806,95874.0,95872.0,0.002526]
[1763144699361,0.20860806,95874.0,95872.0,0.21113724]
[1763144699574,0.37112271,95890.0,95881.0,0.01631]
[1763144699575,0.0454,95883.0,95881.0,0.01631]
[1763144699773,0.20858972,95882.0,95881.0,0.01631]
[1763144700145,0.0454,95883.0,95881.0,0.01631]
[1763144700345,0.20856953,95892.0,95890.0,0.02701]
[1763144701459,0.25396931,95892.0,95890.0,0.02701]
[1763144701765,0.01042644,95910.0,95899.0,0.01544]
[1763144701944,0.20855018,95901.0,95899.0,0.01544]
[1763144702159,0.20855764,95897.0,95891.0,0.02257]
[1763144702345,0.0454,95905.0,95893.0,0.20856456]
[1763144702556,0.25394187,95905.0,95904.0,0.0107]
[1763144702752,0.01042535,95920.0,95904.0,0.02614]
[1763144703126,0.38154697,95930.0,95915.0,0.20851759]
[1763144703127,0.323,95918.0,95915.0,0.20851759]
[1763144703256,0.01221,95936.0,95929.0,0.01102]
[1763144703465,0.0742794,95935.0,95929.0,0.23494652]
[1763144703718,0.00962653,95934.0,95932.0,0.20848036]
[1763144703929,0.0454,95935.0,95930.0,0.20848535]
[1763144704134,0.0454,95935.0,95931.0,0.10479654]
[1763144704333,0.3684,95935.0,95931.0,0.10479654]
[1763144704478,0.323,95942.0,95931.0,0.31327845]
[1763144704696,0.05502249,95941.0,95932.0,0.02257]
[1763144704902,0.0454,95943.0,95929.0,0.01102]
[1763144705126,0.20848535,95930.0,95929.0,0.01102]
[1763144705739,0.41682367,95964.0,95938.0,0.01544]
[1763144705952,0.0454,95949.0,95939.0,0.01544]
[1763144706147,0.2084494,95947.0,95942.0,0.20845861]
[1763144706315,0.2084494,95947.0,95939.0,0.01544]
[1763144706316,0.20844624,95948.0,95939.0,0.01544]
[1763144706667,0.20846344,95941.0,95939.0,0.01544]
[1763144706846,0.20846344,95941.0,95931.0,0.0454]
[1763144706847,0.208481,95932.0,95931.0,0.0454]
[1763144707052,0.20848535,95930.0,95929.0,0.01102]
[1763144707258,0.20847798,95934.0,95929.0,0.21950688]
[1763144707464,0.20848382,95931.0,95929.0,0.01102]
[1763144708274,0.20847448,95935.0,95929.0,0.01102]
[1763144708482,0.20846967,95938.0,95931.0,0.20848259]
[1763144708834,0.25386362,95940.0,95939.0,0.001]
[1763144709048,0.02348,95959.0,95941.0,0.20846145]
[1763144709256,0.323,95949.0,95948.0,0.01656]
[1763144709473,0.04536,95955.0,95946.0,0.10479654]
[1763144709602,0.04536,95955.0,95947.0,0.02361]
[1763144709811,0.20842208,95960.0,95954.0,0.23569205]
[1763144709812,0.20842283,95959.0,95954.0,0.23569205]
[1763144710014,0.01041992,95970.0,95956.0,0.01656]
[1763144710242,0.37132271,95980.0,95965.0,0.01656]
[1763144710413,0.20840593,95967.0,95956.0,0.04536]
[1763144710618,0.20844406,95949.0,95948.0,0.001]
[1763144710821,0.07251,95949.0,95948.0,0.001]
[1763144711026,0.02423,95965.0,95948.0,0.001]
[1763144711250,0.0454,95964.0,95957.0,0.0107]
[1763144711462,0.20841132,95965.0,95957.0,0.03431]
[1763144711663,0.20841132,95965.0,95960.0,0.20841875]
[1763144711856,0.0454,95967.0,95964.0,0.20841048]